Workbook

Sheet 3
A1: 兴化市2020年市属国有企业公开招聘工作人员总成绩及入围体检人员名单
A2: 序号 | B2: 姓名 | C2: 考号 | D2: 岗位代码 | E2: 岗位名称 | F2: 笔试成绩 | G2: 面试成绩 | H2: 总成绩 | I2: 加试成绩 | J2: 是否进入体检环节
A3: 1 | B3: 刘方 | C3: 2020001011017 | D3: 00101 | E3: 财务工作 | F3: 85 | G3: 72.84 | H3: =(F:F+G:G)/2 -> 78.92 | J3: 是
A4: 2 | B4: 韩杰 | C4: 2020001011127 | D4: 00101 | E4: 财务工作 | F4: 76.25 | G4: 70.72 | H4: =(F:F+G:G)/2 -> 73.49
A5: 3 | B5: 蒋碧玉 | C5: 2020001011220 | D5: 00101 | E5: 财务工作 | F5: 77.25 | G5: 缺考 | H5: 缺考
A6: 4 | B6: 杨剑 | C6: 2020001020203 | D6: 00102 | E6: 财务工作 | F6: 79.5 | G6: 75.60 | H6: =(F:F+G:G)/2 -> 77.55 | J6: 是
A7: 5 | B7: 徐婷 | C7: 2020001021511 | D7: 00102 | E7: 财务工作 | F7: 75.5 | G7: 73.20 | H7: 74.35
A8: 6 | B8: 周远津 | C8: 2020001021229 | D8: 00102 | E8: 财务工作 | F8: 75 | G8: 72.06 | H8: 73.53
A9: 7 | B9: 张宇 | C9: 2020001031625 | D9: 00103 | E9: 文秘工作 | F9: 77.25 | G9: 74.10 | H9: 75.68 | J9: 是
A10: 8 | B10: 李晏亚 | C10: 2020001040823 | D10: 00104 | E10: 法务工作 | F10: 77.75 | G10: 73.00 | H10: 75.38 | J10: 是
A11: 9 | B11: 陈倩 | C11: 2020001041805 | D11: 00104 | E11: 法务工作 | F11: 77 | G11: 70.60 | H11: 73.80
A12: 10 | B12: 杨浩 | C12: 2020001040319 | D12: 00104 | E12: 法务工作 | F12: 71.75 | G12: 71.26 | H12: 71.51
A13: 11 | B13: 杨占文 | C13: 2020001050113 | D13: 00105 | E13: 金融服务 | F13: 63.75 | G13: 68.40 | H13: 66.08 | J13: 是
A14: 12 | B14: 朱杰 | C14: 2020001060102 | D14: 00106 | E14: 金融服务 | F14: 86.25 | G14: 72.60 | H14: 79.43 | J14: 是
A15: 13 | B15: 高凌瑶 | C15: 2020001061030 | D15: 00106 | E15: 金融服务 | F15: 82 | G15: 74.62 | H15: 78.31 | J15: 是
A16: 14 | B16: 邵国文 | C16: 2020001061209 | D16: 00106 | E16: 金融服务 | F16: 80.25 | G16: 70.80 | H16: 75.53
A17: 15 | B17: 秦雅蓉 | C17: 2020001061112 | D17: 00106 | E17: 金融服务 | F17: 78.25 | G17: 71.80 | H17: 75.03
A18: 16 | B18: 陈玉林 | C18: 2020001060910 | D18: 00106 | E18: 金融服务 | F18: 82 | G18: 缺考 | H18: 缺考
A19: 17 | B19: 刘杰 | C19: 2020001061807 | D19: 00106 | E19: 金融服务 | F19: 79.25 | G19: 缺考 | H19: 缺考
A20: 18 | B20: 方新宇 | C20: 2020001070719 | D20: 00107 | E20: 金融服务 | F20: 84 | G20: 72.76 | H20: =(F:F+G:G)/2 -> 78.38 | J20: 是
A21: 19 | B21: 杨磊 | C21: 2020001070205 | D21: 00107 | E21: 金融服务 | F21: 83.75 | G21: 71.60 | H21: =(F:F+G:G)/2 -> 77.68 | J21: 是
A22: 20 | B22: 薛浩正 | C22: 2020001071512 | D22: 00107 | E22: 金融服务 | F22: 78.75 | G22: 72.90 | H22: =(F:F+G:G)/2 -> 75.83
A23: 21 | B23: 孙松文 | C23: 2020001070517 | D23: 00107 | E23: 金融服务 | F23: 75.75 | G23: 70.30 | H23: =(F:F+G:G)/2 -> 73.03
A24: 22 | B24: 陶悦 | C24: 2020001070108 | D24: 00107 | E24: 金融服务 | F24: 81 | G24: 缺考 | H24: 缺考
A25: 23 | B25: 黄炜卫 | C25: 2020001070801 | D25: 00107 | E25: 金融服务 | F25: 78 | G25: 缺考 | H25: 缺考
A26: 24 | B26: 沈星星 | C26: 2020002010720 | D26: 00201 | E26: 文 秘 | F26: 79.25 | G26: 73.80 | H26: =(F:F+G:G)/2 -> 76.53 | J26: 是
A27: 25 | B27: 刘昌 | C27: 2020002010502 | D27: 00201 | E27: 文 秘 | F27: 78.75 | G27: 73.46 | H27: 76.11
A28: 26 | B28: 沈辰静 | C28: 2020002011022 | D28: 00201 | E28: 文 秘 | F28: 77.75 | G28: 73.38 | H28: 75.57
A29: 27 | B29: 沈杨 | C29: 2020002030613 | D29: 00203 | E29: 融 资 | F29: 82 | G29: 73.28 | H29: 77.64 | J29: 是
A30: 28 | B30: 袁逸苇 | C30: 2020002030809 | D30: 00203 | E30: 融 资 | F30: 75 | G30: 71.60 | H30: 73.30
A31: 29 | B31: 高琳 | C31: 2020002031601 | D31: 00203 | E31: 融 资 | F31: 72.00 | G31: 71.60 | H31: 71.80
A32: 30 | B32: 张小露 | C32: 2020002041515 | D32: 00204 | E32: 融 资 | F32: 79 | G32: 74.14 | H32: 76.57 | J32: 是
A33: 31 | B33: 史艳平 | C33: 2020002040601 | D33: 00204 | E33: 融 资 | F33: 78 | G33: 74.00 | H33: 76.00
A34: 32 | B34: 匡继衡 | C34: 2020002041710 | D34: 00204 | E34: 融 资 | F34: 78 | G34: 71.50 | H34: 74.75
A35: 33 | B35: 彭复波 | C35: 2020002040128 | D35: 00204 | E35: 融 资 | F35: 78 | G35: 69.76 | H35: 73.88
A36: 34 | B36: 顾玉媛 | C36: 2020002051205 | D36: 00205 | E36: 财 务 | F36: 80.75 | G36: 76.00 | H36: 78.38 | J36: 是
A37: 35 | B37: 杨兴 | C37: 2020002050501 | D37: 00205 | E37: 财 务 | F37: 80.75 | G37: 74.96 | H37: 77.86
A38: 36 | B38: 薛心仪 | C38: 2020002050921 | D38: 00205 | E38: 财 务 | F38: 79 | G38: 74.10 | H38: 76.55
A39: 37 | B39: 陈震萌 | C39: 2020002060121 | D39: 00206 | E39: 工程管理 | F39: 78.25 | G39: 69.80 | H39: 74.03 | J39: 是
A40: 38 | B40: 赵乾 | C40: 2020002061417 | D40: 00206 | E40: 工程管理 | F40: 75.25 | G40: 70.20 | H40: 72.73
A41: 39 | B41: 蒋楚鹏 | C41: 2020002061404 | D41: 00206 | E41: 工程管理 | F41: 70.75 | G41: 68.20 | H41: 69.48
A42: 40 | B42: 赵炎 | C42: 2020002070705 | D42: 00207 | E42: 工程管理 | F42: 82 | G42: 72.20 | H42: 77.10 | J42: 是
A43: 41 | B43: 姜牧野 | C43: 2020002070819 | D43: 00207 | E43: 工程管理 | F43: 79.25 | G43: 73.00 | H43: 76.13
A44: 42 | B44: 张凯 | C44: 2020002071618 | D44: 00207 | E44: 工程管理 | F44: 74.75 | G44: 72.00 | H44: 73.38
A45: 43 | B45: 陈建宏 | C45: 2020002080706 | D45: 00208 | E45: 工程管理 | F45: 79.75 | G45: 70.72 | H45: 75.24 | J45: 是
A46: 44 | B46: 陈正 | C46: 2020002080807 | D46: 00208 | E46: 工程管理 | F46: 74.5 | G46: 75.80 | H46: 75.15
A47: 45 | B47: 李君 | C47: 2020002080722 | D47: 00208 | E47: 工程管理 | F47: 69.75 | G47: 72.90 | H47: 71.33
A48: 46 | B48: 居明荣 | C48: 2020002080611 | D48: 00208 | E48: 工程管理 | F48: 69.75 | G48: 72.40 | H48: 71.08
A49: 47 | B49: 梁西龙 | C49: 2020002091316 | D49: 00209 | E49: 资产管理 | F49: 80.25 | G49: 78.00 | H49: 79.13 | I49: 78.37 | J49: 是
A50: 48 | B50: 吴冰 | C50: 2020002091728 | D50: 00209 | E50: 资产管理 | F50: 80.25 | G50: 78.00 | H50: 79.13 | I50: 76.62
A51: 49 | B51: 高悦 | C51: 2020002091712 | D51: 00209 | E51: 资产管理 | F51: 81.25 | G51: 75.40 | H51: 78.33
A52: 50 | B52: 陆曦研 | C52: 2020003011530 | D52: 00301 | E52: 财务工作 | F52: 82.5 | G52: 74.00 | H52: 78.25 | J52: 是
A53: 51 | B53: 黄琴 | C53: 2020003011310 | D53: 00301 | E53: 财务工作 | F53: 80.5 | G53: 74.20 | H53: 77.35
A54: 52 | B54: 秦悦 | C54: 2020003011311 | D54: 00301 | E54: 财务工作 | F54: 75.25 | G54: 73.00 | H54: 74.13
A55: 53 | B55: 孙润琪 | C55: 2020003021305 | D55: 00302 | E55: 财务工作 | F55: 82.5 | G55: 75.10 | H55: 78.80 | J55: 是
A56: 54 | B56: 俞佳琪 | C56: 2020003020905 | D56: 00302 | E56: 财务工作 | F56: 75.25 | G56: 72.22 | H56: 73.74
A57: 55 | B57: 王晓玉 | C57: 2020003020401 | D57: 00302 | E57: 财务工作 | F57: 70.5 | G57: 缺考 | H57: 缺考
A58: 56 | B58: 金亚进 | C58: 2020003030321 | D58: 00303 | E58: 工程管理 | F58: 79.5 | G58: 74.60 | H58: =(F:F+G:G)/2 -> 77.05 | J58: 是
A59: 57 | B59: 顾文良 | C59: 2020003030406 | D59: 00303 | E59: 工程管理 | F59: 78.5 | G59: 74.30 | H59: 76.40 | J59: 是
A60: 58 | B60: 潘正鹏 | C60: 2020003030511 | D60: 00303 | E60: 工程管理 | F60: 80.5 | G60: 71.30 | H60: 75.90 | J60: 是
A61: 59 | B61: 夏佳蕊 | C61: 2020003031129 | D61: 00303 | E61: 工程管理 | F61: 78.5 | G61: 72.00 | H61: 75.25
A62: 60 | B62: 房殷东 | C62: 2020003031403 | D62: 00303 | E62: 工程管理 | F62: 73.5 | G62: 76.80 | H62: 75.15
A63: 61 | B63: 洪玉萍 | C63: 2020003030813 | D63: 00303 | E63: 工程管理 | F63: 73.75 | G63: 75.50 | H63: 74.63
A64: 62 | B64: 曹莉 | C64: 2020003031001 | D64: 00303 | E64: 工程管理 | F64: 76 | G64: 72.50 | H64: 74.25
A65: 63 | B65: 马思武 | C65: 2020003030417 | D65: 00303 | E65: 工程管理 | F65: 75.25 | G65: 66.70 | H65: 70.98
A66: 64 | B66: 沈干 | C66: 2020003031211 | D66: 00303 | E66: 工程管理 | F66: 77.5 | G66: 缺考 | H66: 缺考
A67: 65 | B67: 王凯 | C67: 2020003040928 | D67: 00304 | E67: 旅游管理 | F67: 81.75 | G67: 77.10 | H67: =(F:F+G:G)/2 -> 79.43 | J67: 是
A68: 66 | B68: 冯斌 | C68: 2020003040714 | D68: 00304 | E68: 旅游管理 | F68: 83.5 | G68: 71.30 | H68: =(F:F+G:G)/2 -> 77.40 | J68: 是
A69: 67 | B69: 瞿敏 | C69: 2020003040610 | D69: 00304 | E69: 旅游管理 | F69: 64.5 | G69: 72.60 | H69: =(F:F+G:G)/2 -> 68.55
A70: 68 | B70: 徐俊昊 | C70: 2020003041424 | D70: 00304 | E70: 旅游管理 | F70: 63 | G70: 72.00 | H70: =(F:F+G:G)/2 -> 67.50
A71: 69 | B71: 叶飞岳 | C71: 2020003040518 | D71: 00304 | E71: 旅游管理 | F71: 84.75 | G71: 缺考 | H71: 缺考
A72: 70 | B72: 程佳雨 | C72: 2020003050612 | D72: 00305 | E72: 旅游管理 | F72: 84.75 | G72: 80.40 | H72: =(F:F+G:G)/2 -> 82.58 | J72: 是
A73: 71 | B73: 孙璐 | C73: 2020003050419 | D73: 00305 | E73: 旅游管理 | F73: 77.5 | G73: 76.70 | H73: 77.10 | J73: 是
A74: 72 | B74: 吉全 | C74: 2020003050429 | D74: 00305 | E74: 旅游管理 | F74: 80.5 | G74: 73.60 | H74: 77.05
A75: 73 | B75: 翟紫菱 | C75: 2020003051103 | D75: 00305 | E75: 旅游管理 | F75: 77.75 | G75: 72.80 | H75: 75.28
A76: 74 | B76: 赵余云 | C76: 2020003050923 | D76: 00305 | E76: 旅游管理 | F76: 75.5 | G76: 74.80 | H76: 75.15
A77: 75 | B77: 王志航 | C77: 2020003051023 | D77: 00305 | E77: 旅游管理 | F77: 78.25 | G77: 71.00 | H77: 74.63
A78: 76 | B78: 荀世奇 | C78: 2020003061506 | D78: 00306 | E78: 文秘工作 | F78: 81.75 | G78: 74.50 | H78: 78.13 | J78: 是
A79: 77 | B79: 王蕊 | C79: 2020003060805 | D79: 00306 | E79: 文秘工作 | F79: 70 | G79: 72.20 | H79: 71.10
A80: 78 | B80: 施春诚 | C80: 2020003060307 | D80: 00306 | E80: 文秘工作 | F80: 58.75 | G80: 73.70 | H80: 66.23
A81: 79 | B81: 崔灿 | C81: 2020004010907 | D81: 00401 | E81: 人力资源管理 | F81: 78 | G81: 71.20 | H81: 74.60 | J81: 是
A82: 80 | B82: 戴云燕 | C82: 2020004010906 | D82: 00401 | E82: 人力资源管理 | F82: 74.75 | G82: 72.40 | H82: 73.58
A83: 81 | B83: 高倩 | C83: 2020004011215 | D83: 00401 | E83: 人力资源管理 | F83: 75.75 | G83: 69.80 | H83: 72.78
A84: 82 | B84: 沙兴礼 | C84: 2020004020619 | D84: 00402 | E84: 工程项目管理 | F84: 83 | G84: 72.20 | H84: 77.60 | J84: 是
A85: 83 | B85: 万开龙 | C85: 2020004020830 | D85: 00402 | E85: 工程项目管理 | F85: 77 | G85: 74.90 | H85: 75.95
A86: 84 | B86: 徐洪海 | C86: 2020004020506 | D86: 00402 | E86: 工程项目管理 | F86: 78 | G86: 65.00 | H86: 71.50
A87: 85 | B87: 唐志华 | C87: 2020004031627 | D87: 00403 | E87: 工程运营管理 | F87: 74.25 | G87: 71.30 | H87: 72.78 | J87: 是
A88: 86 | B88: 高成 | C88: 2020004031422 | D88: 00403 | E88: 工程运营管理 | F88: 68.75 | G88: 72.60 | H88: 70.68
A89: 87 | B89: 倪维建 | C89: 2020004031518 | D89: 00403 | E89: 工程运营管理 | F89: 68.5 | G89: 70.20 | H89: 69.35
A90: 88 | B90: 王凯 | C90: 2020004040806 | D90: 00404 | E90: 停车场管理 | F90: 87 | G90: 74.10 | H90: 80.55 | J90: 是
A91: 89 | B91: 胡晓俊 | C91: 2020004040311 | D91: 00404 | E91: 停车场管理 | F91: 83.75 | G91: 73.20 | H91: 78.48
A92: 90 | B92: 宦松 | C92: 2020004041502 | D92: 00404 | E92: 停车场管理 | F92: 81.75 | G92: 73.40 | H92: 77.58
A93: 91 | B93: 陈敏 | C93: 2020004050409 | D93: 00405 | E93: 园林绿化管理 | F93: 81.25 | G93: 73.20 | H93: 77.23 | J93: 是
A94: 92 | B94: 陆泽霖 | C94: 2020004050515 | D94: 00405 | E94: 园林绿化管理 | F94: 79.25 | G94: 72.80 | H94: 76.03
A95: 93 | B95: 翟国凯 | C95: 2020004051024 | D95: 00405 | E95: 园林绿化管理 | F95: 71.5 | G95: 71.60 | H95: 71.55
A96: 94 | B96: 沈建波 | C96: 2020004060629 | D96: 00406 | E96: 公共管理 | F96: 80.75 | G96: 74.10 | H96: 77.43 | J96: 是
A97: 95 | B97: 张亚琴 | C97: 2020004061622 | D97: 00406 | E97: 公共管理 | F97: 78.25 | G97: 74.60 | H97: 76.43
A98: 96 | B98: 冯寅 | C98: 2020004060627 | D98: 00406 | E98: 公共管理 | F98: 77.5 | G98: 70.40 | H98: 73.95
A99: 97 | B99: 卢研清 | C99: 2020004070711 | D99: 00407 | E99: 财务工作 | F99: 78.25 | G99: 73.60 | H99: 75.93 | J99: 是
A100: 98 | B100: 沈佳雯 | C100: 2020004071320 | D100: 00407 | E100: 财务工作 | F100: 73.25 | G100: 74.60 | H100: 73.93 | J100: 是
A101: 99 | B101: 贾震渊 | C101: 2020004070727 | D101: 00407 | E101: 财务工作 | F101: 71.5 | G101: 75.60 | H101: 73.55
A102: 100 | B102: 颜奕 | C102: 2020004070904 | D102: 00407 | E102: 财务工作 | F102: 61.5 | G102: 78.40 | H102: 69.95
A103: 101 | B103: 刘亚雯 | C103: 2020004071725 | D103: 00407 | E103: 财务工作 | F103: 63.75 | G103: 73.40 | H103: 68.58
A104: 102 | B104: 王英 | C104: 2020004070926 | D104: 00407 | E104: 财务工作 | F104: 57 | G104: 71.80 | H104: 64.40
